[Event "Live Chess"]
[Site "Chess.com"]
[Date "2023.05.20"]
[Round "-"]
[White "Pablo_dmp"]
[Black "Long1968"]
[Result "1-0"]
[WhiteElo "1872"]
[BlackElo "1202"]
[TimeControl "300"]
[EndTime "15:12:16 PDT"]
[Termination "Pablo_dmp won by resignation"]

1. e4 {[%clk 0:04:59.6]} 1... e6 {[%clk 0:04:57]} 2. Nf3 {[%clk 0:04:56.4]} 2...
d5 {[%clk 0:04:54.6]} 3. Nc3 {[%clk 0:04:56.1]} 3... dxe4 {[%clk 0:04:51.4]} 4.
Nxe4 {[%clk 0:04:55]} 4... Nf6 {[%clk 0:04:48.3]} 5. Bd3 {[%clk 0:04:51.6]} 5...
b6 {[%clk 0:04:43.6]} 6. Qe2 {[%clk 0:04:49.1]} 6... Bb7 {[%clk 0:04:39.6]} 7.
c3 {[%clk 0:04:48.6]} 7... Nc6 {[%clk 0:04:14.2]} 8. O-O {[%clk 0:04:32.1]} 8...
Be7 {[%clk 0:04:05.7]} 9. Bc2 {[%clk 0:04:28.7]} 9... O-O {[%clk 0:03:58.3]} 10.
d4 {[%clk 0:04:27.6]} 10... a5 {[%clk 0:03:48.3]} 11. Qd3 {[%clk 0:04:25.7]}
11... Ba6 {[%clk 0:03:39.8]} 12. Nxf6+ {[%clk 0:04:24.3]} 1-0

[Event "Live Chess"]
[Site "Chess.com"]
[Date "2023.05.20"]
[Round "-"]
[White "LL220284LL"]
[Black "chessfiction"]
[Result "1-0"]
[WhiteElo "2385"]
[BlackElo "2341"]
[TimeControl "300"]
[EndTime "15:12:23 PDT"]
[Termination "LL220284LL won by resignation"]

1. Nf3 {[%clk 0:04:56.2]} 1... e5 {[%clk 0:04:58.9]} 2. Nxe5 {[%clk 0:04:54.8]}
2... Nc6 {[%clk 0:04:58.5]} 3. Nf3 {[%clk 0:04:53.6]} 3... g5 {[%clk 0:04:56.7]}
4. d4 {[%clk 0:04:50.9]} 4... g4 {[%clk 0:04:56.1]} 5. Ne5 {[%clk 0:04:49.8]}
5... Bd6 {[%clk 0:04:55.3]} 6. Nxc6 {[%clk 0:04:42]} 6... dxc6 {[%clk
0:04:55.2]} 7. e3 {[%clk 0:04:40.7]} 7... Qf6 {[%clk 0:04:50.6]} 8. Nc3 {[%clk
0:04:37.1]} 8... Bf5 {[%clk 0:04:47.9]} 9. e4 {[%clk 0:04:33.2]} 9... Qe7 {[%clk
0:04:43.7]} 10. Qe2 {[%clk 0:04:29.3]} 10... Bg6 {[%clk 0:04:41.3]} 11. e5
{[%clk 0:04:26]} 11... Bb4 {[%clk 0:04:40.3]} 12. Qxg4 {[%clk 0:04:24.8]} 12...
Rd8 {[%clk 0:04:35.6]} 13. Bg5 {[%clk 0:04:22]} 13... f6 {[%clk 0:04:25.8]} 14.
Bd2 {[%clk 0:04:18.2]} 14... fxe5 {[%clk 0:04:22.4]} 15. O-O-O {[%clk
0:04:16.5]} 15... Rxd4 {[%clk 0:04:20.4]} 16. Qc8+ {[%clk 0:04:12.5]} 16... Rd8
{[%clk 0:04:18.3]} 17. Qxb7 {[%clk 0:04:11.1]} 17... Qc5 {[%clk 0:04:10.3]} 18.
Qxc7 {[%clk 0:03:55.1]} 18... Ne7 {[%clk 0:04:01.2]} 19. Qxd8+ {[%clk
0:03:51.1]} 19... Kxd8 {[%clk 0:03:56.8]} 20. Be3+ {[%clk 0:03:50.2]} 20... Qd5
{[%clk 0:03:54.8]} 21. Nxd5 {[%clk 0:03:47.6]} 21... cxd5 {[%clk 0:03:50.9]} 22.
Bc4 {[%clk 0:03:44.7]} 22... d4 {[%clk 0:03:45.1]} 23. c3 {[%clk 0:03:40.8]}
23... Kc7 {[%clk 0:03:34.4]} 24. cxd4 {[%clk 0:03:35.1]} 24... Rc8 {[%clk
0:03:27.1]} 25. Be6 {[%clk 0:03:29.6]} 25... Rb8 {[%clk 0:03:20.7]} 26. a3
{[%clk 0:03:26.5]} 26... exd4 {[%clk 0:03:11.9]} 27. Rxd4 {[%clk 0:03:22]} 27...
Bd6 {[%clk 0:03:05.3]} 28. Rhd1 {[%clk 0:03:17.4]} 28... Rb6 {[%clk 0:02:48]}
29. Rxd6 {[%clk 0:03:14.9]} 29... Rxd6 {[%clk 0:02:46.9]} 30. Bf4 {[%clk
0:03:13.8]} 30... Nc8 {[%clk 0:02:46.4]} 31. Bxc8 {[%clk 0:03:12.1]} 31... Kxc8
{[%clk 0:02:45.8]} 32. Rxd6 {[%clk 0:03:09.5]} 1-0

[Event "Live Chess"]
[Site "Chess.com"]
[Date "2023.05.20"]
[Round "-"]
[White "therealab0ne"]
[Black "1600x"]
[Result "1-0"]
[WhiteElo "710"]
[BlackElo "1775"]
[TimeControl "300"]
[EndTime "15:12:38 PDT"]
[Termination "therealab0ne won by checkmate"]

1. e4 {[%clk 0:04:58.6]} 1... e5 {[%clk 0:04:58.6]} 2. Bc4 {[%clk 0:04:57.7]}
2... Nc6 {[%clk 0:04:57.3]} 3. Nc3 {[%clk 0:04:55.8]} 3... h5 {[%clk 0:04:55.3]}
4. d3 {[%clk 0:04:49.2]} 4... Na5 {[%clk 0:04:29.1]} 5. Bb3 {[%clk 0:04:42.4]}
5... Bb4 {[%clk 0:04:09.1]} 6. Nf3 {[%clk 0:04:40]} 6... Nxb3 {[%clk 0:04:07.5]}
7. axb3 {[%clk 0:04:38.7]} 7... d5 {[%clk 0:04:05.5]} 8. Nxe5 {[%clk 0:04:32.1]}
8... d4 {[%clk 0:04:03.2]} 9. O-O {[%clk 0:04:28.9]} 9... dxc3 {[%clk
0:04:01.8]} 10. Qf3 {[%clk 0:04:21.7]} 10... f6 {[%clk 0:04:00.1]} 11. Bg5
{[%clk 0:04:06.2]} 11... cxb2 {[%clk 0:03:53.1]} 12. Ng6 {[%clk 0:03:29.2]}
12... Bc3 {[%clk 0:03:42.6]} 13. Rab1 {[%clk 0:03:25.9]} 13... Rh7 {[%clk
0:03:38.5]} 14. e5 {[%clk 0:03:00.2]} 14... fxg5 {[%clk 0:03:35.6]} 15. Qf8+
{[%clk 0:02:55.3]} 15... Kd7 {[%clk 0:03:31.7]} 16. Qf5+ {[%clk 0:02:21.4]}
16... Kc6 {[%clk 0:03:20.8]} 17. Qe4+ {[%clk 0:02:04.4]} 17... Kb6 {[%clk
0:03:19.2]} 18. Qe3+ {[%clk 0:01:53.5]} 18... Bd4 {[%clk 0:03:11.5]} 19. Qd2
{[%clk 0:01:44.7]} 19... Bf5 {[%clk 0:03:03.3]} 20. Qb4+ {[%clk 0:01:29.2]}
20... Ka6 {[%clk 0:02:57.5]} 21. c3 {[%clk 0:01:21.1]} 21... g4 {[%clk
0:02:44.8]} 22. Ra1+ {[%clk 0:01:17.9]} 22... bxa1=Q {[%clk 0:02:38.6]} 23.
Rxa1# {[%clk 0:01:16.5]} 1-0

[Event "Live Chess"]
[Site "Chess.com"]
[Date "2023.05.20"]
[Round "-"]
[White "JoshMcK"]
[Black "blowerd"]
[Result "0-1"]
[WhiteElo "1537"]
[BlackElo "1415"]
[TimeControl "300"]
[EndTime "15:12:38 PDT"]
[Termination "blowerd won by checkmate"]

1. e4 {[%clk 0:04:58.4]} 1... e5 {[%clk 0:04:58.9]} 2. Nf3 {[%clk 0:04:57.2]}
2... Nc6 {[%clk 0:04:57.2]} 3. Bb5 {[%clk 0:04:54.5]} 3... a6 {[%clk 0:04:54.6]}
4. Ba4 {[%clk 0:04:52.7]} 4... b5 {[%clk 0:04:52.9]} 5. Bb3 {[%clk 0:04:50.9]}
5... Nf6 {[%clk 0:04:52.6]} 6. O-O {[%clk 0:04:49.4]} 6... d6 {[%clk 0:04:50.9]}
7. Re1 {[%clk 0:04:42.1]} 7... Na5 {[%clk 0:04:48.2]} 8. d4 {[%clk 0:04:38.3]}
8... Nxb3 {[%clk 0:04:45.7]} 9. axb3 {[%clk 0:04:38.2]} 9... Bg4 {[%clk
0:04:42.3]} 10. dxe5 {[%clk 0:04:35.6]} 10... dxe5 {[%clk 0:04:40.1]} 11. Qxd8+
{[%clk 0:04:32.7]} 11... Rxd8 {[%clk 0:04:38]} 12. Nxe5 {[%clk 0:04:32.3]} 12...
Bh5 {[%clk 0:04:32.7]} 13. Bg5 {[%clk 0:04:23.6]} 13... Bb4 {[%clk 0:04:30.6]}
14. c3 {[%clk 0:04:19.2]} 14... Bc5 {[%clk 0:04:23.7]} 15. Bxf6 {[%clk
0:04:14.7]} 15... gxf6 {[%clk 0:04:22.7]} 16. Nc6 {[%clk 0:04:13.1]} 16... Rd1
{[%clk 0:04:09.1]} 17. Rxd1 {[%clk 0:04:10.4]} 17... Bxd1 {[%clk 0:04:07.2]} 18.
Nd2 {[%clk 0:04:09.7]} 18... Bh5 {[%clk 0:04:00.3]} 19. b4 {[%clk 0:04:03.3]}
19... Bd6 {[%clk 0:03:54.1]} 20. Rxa6 {[%clk 0:04:01.1]} 20... O-O {[%clk
0:03:52.3]} 21. b3 {[%clk 0:03:50.7]} 21... Re8 {[%clk 0:03:49.6]} 22. f3 {[%clk
0:03:48.9]} 22... Bf4 {[%clk 0:03:43.7]} 23. Nf1 {[%clk 0:03:46.4]} 23... Kg7
{[%clk 0:03:37.8]} 24. c4 {[%clk 0:03:44.7]} 24... bxc4 {[%clk 0:03:35.8]} 25.
bxc4 {[%clk 0:03:43.9]} 25... Re6 {[%clk 0:03:22.9]} 26. b5 {[%clk 0:03:38.6]}
26... Rd6 {[%clk 0:03:12.3]} 27. Ne7 {[%clk 0:03:31.8]} 27... Rd1 {[%clk
0:03:09.7]} 28. Nd5 {[%clk 0:03:22.3]} 28... Bd6 {[%clk 0:03:01.8]} 29. c5
{[%clk 0:02:56]} 29... Bxc5+ {[%clk 0:03:00.7]} 30. Ne3 {[%clk 0:02:51.1]} 30...
Bxe3+ {[%clk 0:02:58.5]} 31. Kh1 {[%clk 0:02:48.9]} 31... Rxf1# {[%clk
0:02:56.2]} 0-1

[Event "Live Chess"]
[Site "Chess.com"]
[Date "2023.05.20"]
[Round "-"]
[White "Brooms1989"]
[Black "Biranidun"]
[Result "0-1"]
[WhiteElo "1063"]
[BlackElo "2766"]
[TimeControl "300"]
[EndTime "15:12:50 PDT"]
[Termination "Biranidun won by checkmate"]

1. e4 {[%clk 0:04:56.7]} 1... c5 {[%clk 0:04:59.1]} 2. Nc3 {[%clk 0:04:54.6]}
2... d6 {[%clk 0:04:58.4]} 3. f4 {[%clk 0:04:53.3]} 3... g6 {[%clk 0:04:56.9]}
4. Nf3 {[%clk 0:04:51.8]} 4... Bg7 {[%clk 0:04:56.4]} 5. Bb5+ {[%clk 0:04:45]}
5... Bd7 {[%clk 0:04:55.6]} 6. Bxd7+ {[%clk 0:04:43.5]} 6... Qxd7 {[%clk
0:04:55.5]} 7. O-O {[%clk 0:04:42.4]} 7... Nc6 {[%clk 0:04:55.1]} 8. d3 {[%clk
0:04:37.3]} 8... Nf6 {[%clk 0:04:54.1]} 9. h3 {[%clk 0:04:29.1]} 9... O-O {[%clk
0:04:53]} 10. Bd2 {[%clk 0:04:26.7]} 10... Rac8 {[%clk 0:04:51.5]} 11. Qc1
{[%clk 0:04:24.7]} 11... Nd4 {[%clk 0:04:50.3]} 12. Nxd4 {[%clk 0:04:23.1]}
12... cxd4 {[%clk 0:04:50.2]} 13. Ne2 {[%clk 0:04:22.5]} 13... Qa4 {[%clk
0:04:42.4]} 14. b3 {[%clk 0:04:16.3]} 14... Qc6 {[%clk 0:04:40.6]} 15. Nxd4
{[%clk 0:04:13.4]} 15... Qc5 {[%clk 0:04:38.1]} 16. c3 {[%clk 0:04:08.3]} 16...
e5 {[%clk 0:04:36]} 17. fxe5 {[%clk 0:03:59.9]} 17... dxe5 {[%clk 0:04:35.9]}
18. b4 {[%clk 0:03:46.2]} 18... Qb6 {[%clk 0:04:33.1]} 19. Be3 {[%clk
0:03:41.1]} 19... exd4 {[%clk 0:04:32.3]} 20. Bxd4 {[%clk 0:03:40.9]} 20... Qa6
{[%clk 0:04:30.2]} 21. b5 {[%clk 0:03:29.7]} 21... Qe6 {[%clk 0:04:28.8]} 22. c4
{[%clk 0:03:19.9]} 22... Rfd8 {[%clk 0:04:24.1]} 23. Qc3 {[%clk 0:03:09]} 23...
Nxe4 {[%clk 0:04:22.5]} 24. dxe4 {[%clk 0:03:00.5]} 24... Bxd4+ {[%clk 0:04:20]}
25. Kh1 {[%clk 0:02:58.9]} 25... Bxc3 {[%clk 0:04:18]} 26. Rac1 {[%clk 0:02:54]}
26... Rxc4 {[%clk 0:04:16]} 27. Rf3 {[%clk 0:02:51.1]} 27... Qxe4 {[%clk
0:04:13.4]} 28. Rfxc3 {[%clk 0:02:47.8]} 28... Rxc3 {[%clk 0:04:13.3]} 29. Rxc3
{[%clk 0:02:46.9]} 29... Rd1+ {[%clk 0:04:13]} 30. Kh2 {[%clk 0:02:45.6]} 30...
Qe5+ {[%clk 0:04:12.7]} 31. g3 {[%clk 0:02:44.4]} 31... Qe2# {[%clk 0:04:11.6]}
0-1

[Event "Live Chess"]
[Site "Chess.com"]
[Date "2023.05.20"]
[Round "-"]
[White "JoeRoot66"]
[Black "colourmefree"]
[Result "1-0"]
[WhiteElo "1910"]
[BlackElo "413"]
[TimeControl "300"]
[EndTime "15:12:57 PDT"]
[Termination "JoeRoot66 won by checkmate"]

1. e4 {[%clk 0:04:59.4]} 1... e6 {[%clk 0:04:58.6]} 2. d4 {[%clk 0:04:58.6]}
2... b6 {[%clk 0:04:52.5]} 3. Bd3 {[%clk 0:04:57.1]} 3... Bb7 {[%clk 0:04:51.5]}
4. Nf3 {[%clk 0:04:56.5]} 4... Nc6 {[%clk 0:04:50.4]} 5. d5 {[%clk 0:04:54.9]}
5... exd5 {[%clk 0:04:48.7]} 6. exd5 {[%clk 0:04:54.8]} 6... Nb4 {[%clk
0:04:42.9]} 7. c4 {[%clk 0:04:53.6]} 7... Nxd3+ {[%clk 0:04:35.2]} 8. Qxd3
{[%clk 0:04:53.5]} 8... c6 {[%clk 0:04:30.8]} 9. d6 {[%clk 0:04:51.2]} 9... c5
{[%clk 0:04:23.1]} 10. Qe2+ {[%clk 0:04:48.7]} 10... Ne7 {[%clk 0:04:14.3]} 11.
Bg5 {[%clk 0:04:44]} 11... f6 {[%clk 0:04:11.2]} 12. Bf4 {[%clk 0:04:42.2]}
12... f5 {[%clk 0:03:43]} 13. Nbd2 {[%clk 0:04:36.6]} 13... Be4 {[%clk
0:03:30.5]} 14. Nxe4 {[%clk 0:04:34.4]} 14... fxe4 {[%clk 0:03:29.5]} 15. Qxe4
{[%clk 0:04:34.3]} 15... Rc8 {[%clk 0:03:17.9]} 16. O-O {[%clk 0:04:31.9]} 16...
Rc6 {[%clk 0:03:16.7]} 17. Rfe1 {[%clk 0:04:28]} 17... g6 {[%clk 0:03:11.7]} 18.
dxe7 {[%clk 0:04:24.8]} 18... Bxe7 {[%clk 0:03:08.9]} 19. Bg5 {[%clk 0:04:23.9]}
19... O-O {[%clk 0:02:44]} 20. Bxe7 {[%clk 0:04:20.2]} 20... Qxe7 {[%clk
0:02:39.3]} 21. Qxe7 {[%clk 0:04:16.5]} 21... Rc7 {[%clk 0:02:28.4]} 22. Qd6
{[%clk 0:04:11.8]} 22... Rb7 {[%clk 0:02:18.7]} 23. Qd5+ {[%clk 0:04:10.6]}
23... Kg7 {[%clk 0:02:16.5]} 24. Qxb7 {[%clk 0:04:09.5]} 24... Rf7 {[%clk
0:02:14]} 25. Ne5 {[%clk 0:04:08.1]} 25... Rf4 {[%clk 0:02:09.1]} 26. Qxd7+
{[%clk 0:04:05.7]} 26... Kf6 {[%clk 0:02:07.4]} 27. Qf7+ {[%clk 0:04:04.8]}
27... Kg5 {[%clk 0:02:02.5]} 28. Nf3+ {[%clk 0:04:03.7]} 28... Kg4 {[%clk
0:01:58.7]} 29. h3+ {[%clk 0:04:00.2]} 29... Kh5 {[%clk 0:01:55.6]} 30. Qxh7#
{[%clk 0:03:59.6]} 1-0

[Event "Live Chess"]
[Site "Chess.com"]
[Date "2023.05.20"]
[Round "-"]
[White "chrisbradgate"]
[Black "CameronM1234"]
[Result "1-0"]
[WhiteElo "874"]
[BlackElo "1090"]
[TimeControl "300"]
[EndTime "15:12:57 PDT"]
[Termination "chrisbradgate won by checkmate"]

1. d4 {[%clk 0:04:58.3]} 1... Nf6 {[%clk 0:04:58.5]} 2. Bf4 {[%clk 0:04:57.5]}
2... g6 {[%clk 0:04:57.7]} 3. e3 {[%clk 0:04:56.8]} 3... Bg7 {[%clk 0:04:56.4]}
4. c3 {[%clk 0:04:55.9]} 4... d6 {[%clk 0:04:55.9]} 5. Nf3 {[%clk 0:04:54.6]}
5... Nh5 {[%clk 0:04:53.2]} 6. Bg3 {[%clk 0:04:48.8]} 6... Nxg3 {[%clk
0:04:52.2]} 7. hxg3 {[%clk 0:04:48.2]} 7... Bg4 {[%clk 0:04:48]} 8. Qd3 {[%clk
0:04:43.4]} 8... Nd7 {[%clk 0:04:44.9]} 9. Nbd2 {[%clk 0:04:42.4]} 9... O-O
{[%clk 0:04:27.6]} 10. O-O-O {[%clk 0:04:41.2]} 10... e5 {[%clk 0:04:12.2]} 11.
e4 {[%clk 0:04:32.8]} 11... exd4 {[%clk 0:04:07.7]} 12. cxd4 {[%clk 0:04:30.2]}
12... c5 {[%clk 0:04:03.2]} 13. dxc5 {[%clk 0:04:22.1]} 13... Nxc5 {[%clk
0:04:03.1]} 14. Qe2 {[%clk 0:04:04.6]} 14... Rc8 {[%clk 0:04:00.3]} 15. Kb1
{[%clk 0:03:59.9]} 15... Qb6 {[%clk 0:03:44.7]} 16. Nc4 {[%clk 0:03:39.5]} 16...
Bxf3 {[%clk 0:03:10.4]} 17. Qxf3 {[%clk 0:03:29.9]} 17... Qb4 {[%clk 0:02:53.9]}
18. Qg4 {[%clk 0:03:21.8]} 18... b5 {[%clk 0:02:48.2]} 19. Qh3 {[%clk
0:03:14.6]} 19... bxc4 {[%clk 0:02:46.3]} 20. Qxh7# {[%clk 0:03:12.8]} 1-0

[Event "Live Chess"]
[Site "Chess.com"]
[Date "2023.05.20"]
[Round "-"]
[White "Nazar_777"]
[Black "Duke_of_Bebington"]
[Result "1-0"]
[WhiteElo "1616"]
[BlackElo "1580"]
[TimeControl "300"]
[EndTime "15:13:18 PDT"]
[Termination "Nazar_777 won by checkmate"]

1. e3 {[%clk 0:04:51]} 1... d5 {[%clk 0:04:55.8]} 2. h4 {[%clk 0:04:50.1]} 2...
Nf6 {[%clk 0:04:51.7]} 3. a3 {[%clk 0:04:49.5]} 3... e5 {[%clk 0:04:49.1]} 4. c4
{[%clk 0:04:48.9]} 4... Be6 {[%clk 0:04:46.2]} 5. cxd5 {[%clk 0:04:48.1]} 5...
Bxd5 {[%clk 0:04:45.2]} 6. Nc3 {[%clk 0:04:47.4]} 6... Bc6 {[%clk 0:04:40.9]} 7.
Nf3 {[%clk 0:04:46.3]} 7... Nbd7 {[%clk 0:04:38.6]} 8. Qc2 {[%clk 0:04:45.2]}
8... Bd6 {[%clk 0:04:36.6]} 9. Be2 {[%clk 0:04:44.1]} 9... Qe7 {[%clk
0:04:30.1]} 10. b4 {[%clk 0:04:42.7]} 10... a6 {[%clk 0:04:24.3]} 11. Bb2 {[%clk
0:04:41.5]} 11... Nb6 {[%clk 0:04:11.5]} 12. Rc1 {[%clk 0:04:40.2]} 12... Nbd5
{[%clk 0:04:06.1]} 13. Nxd5 {[%clk 0:04:37.5]} 13... Bxd5 {[%clk 0:03:54.5]} 14.
Bc4 {[%clk 0:04:35.8]} 14... Bxf3 {[%clk 0:03:48.1]} 15. gxf3 {[%clk 0:04:34.3]}
15... O-O-O {[%clk 0:03:44.3]} 16. Be2 {[%clk 0:04:32.4]} 16... Nd5 {[%clk
0:03:28.4]} 17. b5 {[%clk 0:04:29.7]} 17... axb5 {[%clk 0:03:25.6]} 18. Bxb5
{[%clk 0:04:28]} 18... Nb6 {[%clk 0:03:20.5]} 19. a4 {[%clk 0:04:25.8]} 19...
Bb4 {[%clk 0:03:18]} 20. Bc3 {[%clk 0:04:20.5]} 20... Nd5 {[%clk 0:03:01.5]} 21.
Bxb4 {[%clk 0:04:12.3]} 21... Nxb4 {[%clk 0:03:00.1]} 22. Qc3 {[%clk 0:04:10.8]}
22... Qd6 {[%clk 0:02:35.8]} 23. Ke2 {[%clk 0:04:03.3]} 23... Kb8 {[%clk
0:02:31.3]} 24. Rb1 {[%clk 0:03:56.8]} 24... Nd5 {[%clk 0:02:20.8]} 25. Qb2
{[%clk 0:03:50.5]} 25... c6 {[%clk 0:02:11.9]} 26. Bc4 {[%clk 0:03:48.4]} 26...
Rd7 {[%clk 0:02:06.5]} 27. a5 {[%clk 0:03:37.8]} 27... Rc8 {[%clk 0:01:50.7]}
28. Rhc1 {[%clk 0:03:35.4]} 28... Rcc7 {[%clk 0:01:48.5]} 29. a6 {[%clk
0:03:33.1]} 29... Ne7 {[%clk 0:01:37.3]} 30. Rd1 {[%clk 0:03:26.3]} 30... b5
{[%clk 0:01:20.9]} 31. Bxf7 {[%clk 0:03:16.1]} 31... Nc8 {[%clk 0:01:15.5]} 32.
Be8 {[%clk 0:03:07]} 32... Qd3+ {[%clk 0:01:06]} 33. Ke1 {[%clk 0:03:04.5]}
33... Re7 {[%clk 0:01:01.3]} 34. Bxc6 {[%clk 0:02:56.5]} 34... Rxc6 {[%clk
0:00:56.1]} 35. Qxb5+ {[%clk 0:02:54.4]} 35... Qxb5 {[%clk 0:00:54]} 36. Rxb5+
{[%clk 0:02:52.4]} 36... Ka7 {[%clk 0:00:48.5]} 37. Rdb1 {[%clk 0:02:48]} 37...
Nb6 {[%clk 0:00:40.3]} 38. Ke2 {[%clk 0:02:45.3]} 38... Kxa6 {[%clk 0:00:36.7]}
39. R5b2 {[%clk 0:02:40.8]} 39... Kb7 {[%clk 0:00:34.3]} 40. Rb4 {[%clk
0:02:36]} 40... Kc7 {[%clk 0:00:29]} 41. f4 {[%clk 0:02:34.2]} 41... exf4 {[%clk
0:00:27.1]} 42. Rxf4 {[%clk 0:02:32.7]} 42... Nd5 {[%clk 0:00:24.8]} 43. Rd4
{[%clk 0:02:21.3]} 43... Rd7 {[%clk 0:00:19]} 44. Ra1 {[%clk 0:02:17.3]} 44...
Nb6 {[%clk 0:00:17.6]} 45. Rb4 {[%clk 0:02:15.2]} 45... Kb7 {[%clk 0:00:14.6]}
46. Rab1 {[%clk 0:02:13]} 46... Rdc7 {[%clk 0:00:12.8]} 47. f4 {[%clk
0:02:10.8]} 47... Ka6 {[%clk 0:00:11.5]} 48. Kf3 {[%clk 0:02:09.1]} 48... Ka5
{[%clk 0:00:10.2]} 49. R4b2 {[%clk 0:02:07.2]} 49... Nd5 {[%clk 0:00:08.7]} 50.
Ra1# {[%clk 0:02:05.8]} 1-0

[Event "Live Chess"]
[Site "Chess.com"]
[Date "2023.05.20"]
[Round "-"]
[White "JanMur7"]
[Black "TheSmoulderingMaster"]
[Result "0-1"]
[WhiteElo "1958"]
[BlackElo "1724"]
[TimeControl "300"]
[EndTime "15:13:38 PDT"]
[Termination "TheSmoulderingMaster won by checkmate"]

1. e4 {[%clk 0:04:57.2]} 1... c5 {[%clk 0:04:58.8]} 2. Nf3 {[%clk 0:04:56.2]}
2... d6 {[%clk 0:04:58.1]} 3. c3 {[%clk 0:04:55.3]} 3... Nf6 {[%clk 0:04:56.6]}
4. Be2 {[%clk 0:04:54.9]} 4... Nc6 {[%clk 0:04:55.2]} 5. d4 {[%clk 0:04:53.8]}
5... cxd4 {[%clk 0:04:54.2]} 6. cxd4 {[%clk 0:04:53]} 6... e5 {[%clk 0:04:51.3]}
7. d5 {[%clk 0:04:52.1]} 7... Ne7 {[%clk 0:04:49.1]} 8. Nc3 {[%clk 0:04:51]}
8... Ng6 {[%clk 0:04:47.6]} 9. O-O {[%clk 0:04:49.2]} 9... Be7 {[%clk
0:04:46.5]} 10. Be3 {[%clk 0:04:46.1]} 10... O-O {[%clk 0:04:45.3]} 11. h4
{[%clk 0:04:43.3]} 11... Ng4 {[%clk 0:04:42.6]} 12. h5 {[%clk 0:04:40.9]} 12...
Nxe3 {[%clk 0:04:38.7]} 13. fxe3 {[%clk 0:04:39.8]} 13... Nh4 {[%clk 0:04:37.2]}
14. Nxh4 {[%clk 0:04:37.8]} 14... Bxh4 {[%clk 0:04:36.4]} 15. Bg4 {[%clk
0:04:37.2]} 15... Qg5 {[%clk 0:04:32.7]} 16. Bxc8 {[%clk 0:04:36.2]} 16... Qxe3+
{[%clk 0:04:29.5]} 17. Kh1 {[%clk 0:04:33.6]} 17... Raxc8 {[%clk 0:04:27.8]} 18.
Rf3 {[%clk 0:04:30.8]} 18... Qg5 {[%clk 0:04:25.6]} 19. Rf5 {[%clk 0:04:26.4]}
19... Qg3 {[%clk 0:04:21.4]} 20. Rf3 {[%clk 0:04:11.5]} 20... Qg4 {[%clk
0:04:18.4]} 21. Rh3 {[%clk 0:04:07.6]} 21... Qxd1+ {[%clk 0:04:14]} 22. Rxd1
{[%clk 0:04:07.5]} 22... Bg5 {[%clk 0:04:12.3]} 23. Nb5 {[%clk 0:04:02.4]} 23...
Rc2 {[%clk 0:04:09.6]} 24. Nxd6 {[%clk 0:03:56.9]} 24... Rxb2 {[%clk 0:04:07.6]}
25. Rb3 {[%clk 0:03:55.9]} 25... Rxa2 {[%clk 0:04:04.9]} 26. Nxb7 {[%clk
0:03:54.6]} 26... h6 {[%clk 0:04:00.1]} 27. d6 {[%clk 0:03:51.4]} 27... a5
{[%clk 0:03:53]} 28. d7 {[%clk 0:03:48.7]} 28... a4 {[%clk 0:03:52]} 29. Rb5
{[%clk 0:03:38.1]} 29... a3 {[%clk 0:03:47.3]} 30. Ra5 {[%clk 0:03:20.4]} 30...
Bd2 {[%clk 0:03:36.4]} 31. Rxe5 {[%clk 0:03:03]} 31... Rb2 {[%clk 0:03:18.8]}
32. Re8 {[%clk 0:02:36.9]} 32... Bg5 {[%clk 0:03:03.7]} 33. d8=Q {[%clk
0:02:14.6]} 33... Bxd8 {[%clk 0:03:02]} 34. Rdxd8 {[%clk 0:02:12.1]} 34... Rxe8
{[%clk 0:02:53]} 35. Rxe8+ {[%clk 0:02:12]} 35... Kh7 {[%clk 0:02:52.7]} 36. Ra8
{[%clk 0:02:10.6]} 36... a2 {[%clk 0:02:47.3]} 37. Kh2 {[%clk 0:02:05.8]} 37...
Rxb7 {[%clk 0:02:42.1]} 38. Rxa2 {[%clk 0:02:05]} 38... Rb5 {[%clk 0:02:38.9]}
39. g4 {[%clk 0:02:03.3]} 39... Re5 {[%clk 0:02:26.9]} 40. Ra4 {[%clk
0:02:00.6]} 40... Kg8 {[%clk 0:02:24.6]} 41. Kg3 {[%clk 0:01:51.8]} 41... Kf8
{[%clk 0:02:23.4]} 42. Kf4 {[%clk 0:01:50.7]} 42... f6 {[%clk 0:02:22.1]} 43.
Rd4 {[%clk 0:01:46.4]} 43... Ra5 {[%clk 0:02:18.9]} 44. Rd5 {[%clk 0:01:38.6]}
44... Ra1 {[%clk 0:02:16.2]} 45. Kf5 {[%clk 0:01:36.5]} 45... Rf1+ {[%clk
0:02:12.5]} 46. Kg6 {[%clk 0:01:35.3]} 46... Rf4 {[%clk 0:02:09.6]} 47. g5
{[%clk 0:01:17.6]} 47... fxg5 {[%clk 0:02:01.7]} 48. e5 {[%clk 0:01:11.1]} 48...
g4 {[%clk 0:01:57.4]} 49. Rd8+ {[%clk 0:01:00.8]} 49... Ke7 {[%clk 0:01:55.8]}
50. Ra8 {[%clk 0:00:59.2]} 50... g3 {[%clk 0:01:54]} 51. Ra7+ {[%clk 0:00:51.7]}
51... Ke6 {[%clk 0:01:51.9]} 52. Ra2 {[%clk 0:00:37.2]} 52... Rg4+ {[%clk
0:01:49.2]} 53. Kh7 {[%clk 0:00:33.7]} 53... g2 {[%clk 0:01:48.6]} 54. Ra6+
{[%clk 0:00:31.5]} 54... Kxe5 {[%clk 0:01:47.1]} 55. Rg6 {[%clk 0:00:29.1]}
55... g1=Q {[%clk 0:01:42.6]} 56. Kh8 {[%clk 0:00:26.9]} 56... Rxg6 {[%clk
0:01:37.5]} 57. Kh7 {[%clk 0:00:25]} 57... Rg5 {[%clk 0:01:34.2]} 58. Kh8 {[%clk
0:00:22.8]} 58... Qa7 {[%clk 0:01:30.1]} 59. Kh7 {[%clk 0:00:22.7]} 59... Qb7
{[%clk 0:01:26.3]} 60. Kh8 {[%clk 0:00:22.6]} 60... Qc8+ {[%clk 0:01:24.6]} 61.
Kh7 {[%clk 0:00:22.5]} 61... Rxh5 {[%clk 0:01:15.9]} 62. Kg6 {[%clk 0:00:20.5]}
62... Qf5+ {[%clk 0:01:14.1]} 63. Kxg7 {[%clk 0:00:18.9]} 63... Qf6+ {[%clk
0:01:10.1]} 64. Kh7 {[%clk 0:00:18.8]} 64... Qf7+ {[%clk 0:01:08.1]} 65. Kh8
{[%clk 0:00:17.8]} 65... Qf8+ {[%clk 0:01:05.7]} 66. Kh7 {[%clk 0:00:16.4]}
66... Rh1 {[%clk 0:01:02.4]} 67. Kg6 {[%clk 0:00:14.5]} 67... Rg1+ {[%clk
0:01:00.9]} 68. Kh7 {[%clk 0:00:14.4]} 68... Qg7# {[%clk 0:00:58.7]} 0-1